[Event "Titled Tuesday Blitz February 21 Late 2023"]
[White "Aradhya, Garg"]
[Black "Guzman, Christopher"]
[WhiteFideId "25006746"]
[BlackFideId "6405096"]
[WhiteElo "2284"]
[BlackElo "2271"]
[Result "0-1"]
[Round "08"]
[TimeControl "180+2"]
[Date "2023.02.21"]
[WhiteClock "0:00:03"]
[BlackClock "0:00:41"]

1. d4 {[%clk 0:03:00]}  Nf6 {[%clk 0:02:59]} 2. c4 {[%clk 0:02:59]}  e6 {[%clk 0:02:59]} 3. Nf3 {[%clk 0:02:59]}  b6 {[%clk 0:03:00]} 4. g3 {[%clk 0:02:57]}  Bb7 {[%clk 0:03:00]} 5. Bg2 {[%clk 0:02:57]}  Be7 {[%clk 0:03:01]} 6. O-O {[%clk 0:02:55]}  O-O {[%clk 0:03:01]} 7. Nc3 {[%clk 0:02:53]}  d5 {[%clk 0:03:00]} 8. cxd5 {[%clk 0:02:53]}  Nxd5 {[%clk 0:03:01]} 9. Qc2 {[%clk 0:02:47]}  Nd7 {[%clk 0:03:01]} 10. Nxd5 {[%clk 0:02:41]}  Bxd5 {[%clk 0:03:02]} 11. e4 {[%clk 0:02:39]}  Bb7 {[%clk 0:03:02]} 12. Rd1 {[%clk 0:02:38]}  Nf6 {[%clk 0:03:02]} 13. Ne5 {[%clk 0:02:37]}  Rc8 {[%clk 0:02:59]} 14. Be3 {[%clk 0:02:23]}  Qe8 {[%clk 0:02:58]} 15. Rac1 {[%clk 0:02:19]}  c5 {[%clk 0:02:56]} 16. d5 {[%clk 0:02:19]}  exd5 {[%clk 0:02:56]} 17. exd5 {[%clk 0:02:20]}  Bd6 {[%clk 0:02:56]} 18. Nc4 {[%clk 0:02:19]}  Qd7 {[%clk 0:02:54]} 19. Bg5 {[%clk 0:02:15]}  Ne8 {[%clk 0:02:53]} 20. Re1 {[%clk 0:02:10]}  f6 {[%clk 0:02:45]} 21. Be3 {[%clk 0:01:46]}  Nc7 {[%clk 0:02:42]} 22. Rcd1 {[%clk 0:01:45]}  Nb5 {[%clk 0:02:34]} 23. Nxd6 {[%clk 0:01:34]}  Nxd6 {[%clk 0:02:33]} 24. Bf4 {[%clk 0:01:34]}  Rfe8 {[%clk 0:02:32]} 25. Re6 {[%clk 0:01:33]}  Nb5 {[%clk 0:02:26]} 26. Bh3 {[%clk 0:01:30]}  Nd4 {[%clk 0:02:19]} 27. Rxe8+ {[%clk 0:01:12]}  Qxe8 {[%clk 0:02:15]} 28. Bxc8 {[%clk 0:01:03]}  Nxc2 {[%clk 0:02:05]} 29. Bxb7 {[%clk 0:01:03]}  Qe2 {[%clk 0:02:01]} 30. Rd2 {[%clk 0:00:57]}  Qe1+ {[%clk 0:02:01]} 31. Kg2 {[%clk 0:00:56]}  Nd4 {[%clk 0:02:02]} 32. d6 {[%clk 0:00:54]}  Qe6 {[%clk 0:02:00]} 33. b4 {[%clk 0:00:52]}  g5 {[%clk 0:01:59]} 34. bxc5 {[%clk 0:00:51]}  bxc5 {[%clk 0:02:00]} 35. Be3 {[%clk 0:00:31]}  Qxd6 {[%clk 0:01:59]} 36. a4 {[%clk 0:00:29]}  Kg7 {[%clk 0:01:55]} 37. a5 {[%clk 0:00:29]}  h6 {[%clk 0:01:51]} 38. a6 {[%clk 0:00:28]}  Kg6 {[%clk 0:01:50]} 39. Be4+ {[%clk 0:00:27]}  f5 {[%clk 0:01:50]} 40. Bb7 {[%clk 0:00:27]}  f4 {[%clk 0:01:48]} 41. Bxd4 {[%clk 0:00:27]}  cxd4 {[%clk 0:01:48]} 42. Rd3 {[%clk 0:00:26]}  h5 {[%clk 0:01:47]} 43. h3 {[%clk 0:00:26]}  Qe5 {[%clk 0:01:43]} 44. gxf4 {[%clk 0:00:18]}  Qxf4 {[%clk 0:01:39]} 45. Rf3 {[%clk 0:00:18]}  Qe5 {[%clk 0:01:36]} 46. Bc6 {[%clk 0:00:17]}  Qd6 {[%clk 0:01:31]} 47. Bb7 {[%clk 0:00:17]}  d3 {[%clk 0:01:31]} 48. Be4+ {[%clk 0:00:16]}  Kg7 {[%clk 0:01:31]} 49. Bxd3 {[%clk 0:00:16]}  Qd5 {[%clk 0:01:31]} 50. Kg3 {[%clk 0:00:15]}  Qe5+ {[%clk 0:01:29]} 51. Kg2 {[%clk 0:00:15]}  Qd5 {[%clk 0:01:23]} 52. Kg3 {[%clk 0:00:15]}  Qd6+ {[%clk 0:01:16]} 53. Kg2 {[%clk 0:00:15]}  Qc6 {[%clk 0:01:11]} 54. Kg3 {[%clk 0:00:15]}  Kh6 {[%clk 0:01:10]} 55. Re3 {[%clk 0:00:11]}  h4+ {[%clk 0:01:06]} 56. Kh2 {[%clk 0:00:11]}  Qd6+ {[%clk 0:01:06]} 57. Kg2 {[%clk 0:00:11]}  Qd5+ {[%clk 0:01:06]} 58. Be4 {[%clk 0:00:10]}  Qe6 {[%clk 0:01:02]} 59. Bb7 {[%clk 0:00:09]}  Qf6 {[%clk 0:01:01]} 60. Re4 {[%clk 0:00:09]}  Qf5 {[%clk 0:00:59]} 61. Rc4 {[%clk 0:00:09]}  Qf7 {[%clk 0:00:58]} 62. Rc6+ {[%clk 0:00:09]}  Kg7 {[%clk 0:00:58]} 63. Rd6 {[%clk 0:00:08]}  Qf4 {[%clk 0:00:58]} 64. Rd7+ {[%clk 0:00:08]}  Kf6 {[%clk 0:00:57]} 65. Rd8 {[%clk 0:00:08]}  Ke7 {[%clk 0:00:55]} 66. Ra8 {[%clk 0:00:08]}  g4 {[%clk 0:00:55]} 67. Rxa7 {[%clk 0:00:07]}  g3 {[%clk 0:00:50]} 68. Bf3+ {[%clk 0:00:07]}  Kd6 {[%clk 0:00:49]} 69. Ra8 {[%clk 0:00:04]}  gxf2 {[%clk 0:00:49]} 70. Rd8+ {[%clk 0:00:03]}  Ke7 {[%clk 0:00:49]} 71. Rd1 {[%clk 0:00:03]}  Qg3+ {[%clk 0:00:49]} 72. Kf1 {[%clk 0:00:04]}  Qxf3 {[%clk 0:00:49]} 73. Rd2 {[%clk 0:00:04]}  Qxh3+ {[%clk 0:00:45]} 74. Kxf2 {[%clk 0:00:05]}  Qf5+ {[%clk 0:00:45]} 75. Ke1 {[%clk 0:00:04]}  Qa5 {[%clk 0:00:43]} 76. Kd1 {[%clk 0:00:03]}  Qxa6 {[%clk 0:00:43]} 77. Re2+ {[%clk 0:00:03]}  Kf6 {[%clk 0:00:43]} 78. Ke1 {[%clk 0:00:03]}  Qa1+ {[%clk 0:00:42]} 79. Kf2 {[%clk 0:00:03]}  Qd4+ {[%clk 0:00:42]} 80. Kg2 {[%clk 0:00:03]}  Kf5 {[%clk 0:00:42]} 81. Rf2+ {[%clk 0:00:03]}  Kg4 {[%clk 0:00:43]} 82. Re2 {[%clk 0:00:03]}  Qd5+ {[%clk 0:00:42]} 83. Kh2 {[%clk 0:00:03]}  h3 {[%clk 0:00:40]} 84. Rf2 {[%clk 0:00:03]}  Qe5+ {[%clk 0:00:40]} 85. Kh1 {[%clk 0:00:03]}  Qe1+ {[%clk 0:00:40]} 86. Rf1 {[%clk 0:00:02]}  Qxf1+ {[%clk 0:00:40]} 87. Kh2 {[%clk 0:00:03]}  Qg2# {[%clk 0:00:41]} 0-1


[Site "https://www.chess.com"]

[Event "Titled Tuesday Blitz February 21 Late 2023"]
[White "Leiva, Gianmarco"]
[Black "Veiga, Jose Francisco R P Neves"]
[WhiteFideId "3804399"]
[BlackFideId "1930087"]
[WhiteElo "2392"]
[BlackElo "2406"]
[Result "0-1"]
[Round "08"]
[TimeControl "180+2"]
[Date "2023.02.21"]
[WhiteClock "0:00:01"]
[BlackClock "0:01:07"]

1. e4 {[%clk 0:03:00]}  Nc6 {[%clk 0:02:59]} 2. Nf3 {[%clk 0:02:55]}  e5 {[%clk 0:02:58]} 3. c3 {[%clk 0:02:52]}  d5 {[%clk 0:02:56]} 4. Qa4 {[%clk 0:02:51]}  f6 {[%clk 0:02:56]} 5. Bb5 {[%clk 0:02:44]}  Ne7 {[%clk 0:02:55]} 6. d3 {[%clk 0:02:34]}  Be6 {[%clk 0:02:54]} 7. O-O {[%clk 0:02:31]}  a6 {[%clk 0:02:54]} 8. Bxc6+ {[%clk 0:02:27]}  Nxc6 {[%clk 0:02:55]} 9. Re1 {[%clk 0:02:17]}  dxe4 {[%clk 0:02:54]} 10. dxe4 {[%clk 0:02:15]}  Bc5 {[%clk 0:02:54]} 11. Be3 {[%clk 0:02:13]}  Qe7 {[%clk 0:02:52]} 12. Nbd2 {[%clk 0:02:10]}  O-O {[%clk 0:02:50]} 13. b4 {[%clk 0:01:44]}  Bxe3 {[%clk 0:02:48]} 14. Rxe3 {[%clk 0:01:45]}  Rfd8 {[%clk 0:02:47]} 15. Nf1 {[%clk 0:01:37]}  b5 {[%clk 0:02:36]} 16. Qc2 {[%clk 0:01:34]}  Rd6 {[%clk 0:02:36]} 17. Ng3 {[%clk 0:01:29]}  Rad8 {[%clk 0:02:36]} 18. h3 {[%clk 0:01:29]}  a5 {[%clk 0:02:27]} 19. a4 {[%clk 0:01:26]}  Rb8 {[%clk 0:01:56]} 20. axb5 {[%clk 0:01:11]}  Rxb5 {[%clk 0:01:57]} 21. bxa5 {[%clk 0:01:10]}  Rxa5 {[%clk 0:01:55]} 22. Rb1 {[%clk 0:01:05]}  Ra2 {[%clk 0:01:52]} 23. Rb2 {[%clk 0:01:00]}  Rxb2 {[%clk 0:01:47]} 24. Qxb2 {[%clk 0:01:00]}  Qd8 {[%clk 0:01:46]} 25. Kh2 {[%clk 0:00:59]}  Na5 {[%clk 0:01:36]} 26. Re1 {[%clk 0:00:44]}  Nc4 {[%clk 0:01:33]} 27. Qb4 {[%clk 0:00:40]}  Rb6 {[%clk 0:01:33]} 28. Qc5 {[%clk 0:00:31]}  Qd6 {[%clk 0:01:33]} 29. Qxd6 {[%clk 0:00:23]}  cxd6 {[%clk 0:01:34]} 30. Ra1 {[%clk 0:00:18]}  Rb7 {[%clk 0:01:32]} 31. Ra6 {[%clk 0:00:16]}  Rc7 {[%clk 0:01:30]} 32. Ne2 {[%clk 0:00:15]}  Kf7 {[%clk 0:01:30]} 33. g4 {[%clk 0:00:14]}  g6 {[%clk 0:01:30]} 34. Ne1 {[%clk 0:00:10]}  Nd2 {[%clk 0:01:21]} 35. f3 {[%clk 0:00:08]}  Bc4 {[%clk 0:01:21]} 36. Rxd6 {[%clk 0:00:09]}  Nf1+ {[%clk 0:01:11]} 37. Kg1 {[%clk 0:00:08]}  Bxe2 {[%clk 0:01:11]} 38. Kf2 {[%clk 0:00:08]}  Bc4 {[%clk 0:01:10]} 39. Nc2 {[%clk 0:00:06]}  Ke7 {[%clk 0:01:08]} 40. Rd1 {[%clk 0:00:04]}  Rd7 {[%clk 0:01:07]} 41. Ra1 {[%clk 0:00:02]}  Rd2+ {[%clk 0:01:07]} 42. Kg1 {[%clk 0:00:01]}  Rxc2 {[%clk 0:01:07]} 43. Ra7+ {[%clk 0:00:01]}  Kd6 {[%clk 0:01:07]} 0-1


[Site "https://www.chess.com"]

[Event "Titled Tuesday Blitz February 21 Late 2023"]
[White "Womacka, Mathias"]
[Black "Perske, Thore"]
[WhiteFideId "4611390"]
[BlackFideId "12902195"]
[WhiteElo "2396"]
[BlackElo "2448"]
[Result "0-1"]
[Round "08"]
[TimeControl "180+2"]
[Date "2023.02.21"]
[WhiteClock "0:00:31"]
[BlackClock "0:00:09"]

1. e4 {[%clk 0:03:00]}  e6 {[%clk 0:02:55]} 2. d4 {[%clk 0:02:59]}  d5 {[%clk 0:02:56]} 3. Nd2 {[%clk 0:02:58]}  c5 {[%clk 0:02:56]} 4. exd5 {[%clk 0:02:58]}  exd5 {[%clk 0:02:57]} 5. Ngf3 {[%clk 0:02:58]}  a6 {[%clk 0:02:57]} 6. Be2 {[%clk 0:02:50]}  Nf6 {[%clk 0:02:57]} 7. O-O {[%clk 0:02:50]}  Be7 {[%clk 0:02:58]} 8. dxc5 {[%clk 0:02:49]}  Bxc5 {[%clk 0:02:59]} 9. Nb3 {[%clk 0:02:49]}  Bb6 {[%clk 0:02:59]} 10. Bg5 {[%clk 0:02:44]}  O-O {[%clk 0:02:59]} 11. c3 {[%clk 0:02:40]}  Re8 {[%clk 0:02:59]} 12. Nfd4 {[%clk 0:02:36]}  h6 {[%clk 0:02:58]} 13. Bh4 {[%clk 0:02:36]}  g5 {[%clk 0:02:58]} 14. Bg3 {[%clk 0:02:36]}  Ne4 {[%clk 0:02:59]} 15. Bd3 {[%clk 0:02:33]}  f5 {[%clk 0:02:59]} 16. Qh5 {[%clk 0:02:29]}  Kg7 {[%clk 0:02:44]} 17. Bxb8 {[%clk 0:02:02]}  Rxb8 {[%clk 0:02:39]} 18. Rae1 {[%clk 0:02:00]}  Bd7 {[%clk 0:02:25]} 19. Bxe4 {[%clk 0:01:46]}  dxe4 {[%clk 0:02:21]} 20. f3 {[%clk 0:01:46]}  e3 {[%clk 0:02:03]} 21. f4 {[%clk 0:01:45]}  g4 {[%clk 0:01:59]} 22. Re2 {[%clk 0:01:35]}  Qf6 {[%clk 0:01:48]} 23. Rfe1 {[%clk 0:01:34]}  Re4 {[%clk 0:00:53]} 24. Rxe3 {[%clk 0:01:32]}  Be8 {[%clk 0:00:37]} 25. Qxf5 {[%clk 0:01:16]}  Qxf5 {[%clk 0:00:29]} 26. Nxf5+ {[%clk 0:01:17]}  Kf6 {[%clk 0:00:29]} 27. Nfd4 {[%clk 0:01:15]}  Rxe3 {[%clk 0:00:28]} 28. Rxe3 {[%clk 0:01:16]}  Bf7 {[%clk 0:00:29]} 29. Kf2 {[%clk 0:00:55]}  Rd8 {[%clk 0:00:29]} 30. Rd3 {[%clk 0:00:49]}  a5 {[%clk 0:00:26]} 31. Kg3 {[%clk 0:00:46]}  a4 {[%clk 0:00:23]} 32. Nc1 {[%clk 0:00:46]}  h5 {[%clk 0:00:20]} 33. b3 {[%clk 0:00:35]}  a3 {[%clk 0:00:20]} 34. Nb5 {[%clk 0:00:33]}  Rxd3+ {[%clk 0:00:16]} 35. Nxd3 {[%clk 0:00:34]}  Bxb3 {[%clk 0:00:15]} 36. Nxa3 {[%clk 0:00:34]}  Bxa2 {[%clk 0:00:13]} 37. Ne5 {[%clk 0:00:33]}  Ba5 {[%clk 0:00:09]} 38. c4 {[%clk 0:00:31]}  Be1# {[%clk 0:00:09]} 0-1


[Site "https://www.chess.com"]

[Event "Titled Tuesday Blitz February 21 Late 2023"]
[White "Martinez Ramirez, Lennis"]
[Black "Koutlas, Nikolaos"]
[WhiteFideId "3509079"]
[BlackFideId "25827138"]
[WhiteElo "2426"]
[BlackElo "2341"]
[Result "0-1"]
[Round "08"]
[TimeControl "180+2"]
[Date "2023.02.21"]
[WhiteClock "0:00:10"]
[BlackClock "0:00:35"]

1. c4 {[%clk 0:03:00]}  Nf6 {[%clk 0:02:56]} 2. Nc3 {[%clk 0:03:00]}  a6 {[%clk 0:02:49]} 3. g3 {[%clk 0:02:59]}  e5 {[%clk 0:02:48]} 4. Bg2 {[%clk 0:02:59]}  h5 {[%clk 0:02:48]} 5. h3 {[%clk 0:02:55]}  h4 {[%clk 0:02:45]} 6. g4 {[%clk 0:02:55]}  c6 {[%clk 0:02:41]} 7. d4 {[%clk 0:02:45]}  exd4 {[%clk 0:02:25]} 8. Qxd4 {[%clk 0:02:44]}  Qa5 {[%clk 0:02:21]} 9. Bd2 {[%clk 0:02:35]}  Bc5 {[%clk 0:02:19]} 10. Qe5+ {[%clk 0:02:35]}  Kd8 {[%clk 0:02:09]} 11. Nd5 {[%clk 0:02:11]}  Qxd2+ {[%clk 0:01:53]} 12. Kxd2 {[%clk 0:02:11]}  cxd5 {[%clk 0:01:54]} 13. cxd5 {[%clk 0:02:06]}  d6 {[%clk 0:01:53]} 14. Qc3 {[%clk 0:02:06]}  a5 {[%clk 0:01:50]} 15. e3 {[%clk 0:02:04]}  Bb4 {[%clk 0:01:49]} 16. Ne2 {[%clk 0:02:03]}  Na6 {[%clk 0:01:44]} 17. Rac1 {[%clk 0:01:58]}  Nc5 {[%clk 0:01:42]} 18. Kc2 {[%clk 0:01:54]}  Bxc3 {[%clk 0:01:41]} 19. Nxc3 {[%clk 0:01:55]}  Bd7 {[%clk 0:01:40]} 20. Rhd1 {[%clk 0:01:45]}  Rc8 {[%clk 0:01:38]} 21. Kd2 {[%clk 0:01:43]}  b5 {[%clk 0:01:35]} 22. Ke1 {[%clk 0:01:43]}  b4 {[%clk 0:01:34]} 23. Ne2 {[%clk 0:01:43]}  Bb5 {[%clk 0:01:30]} 24. Kf1 {[%clk 0:00:55]}  Kd7 {[%clk 0:01:21]} 25. f3 {[%clk 0:00:54]}  Nd3 {[%clk 0:01:21]} 26. Rb1 {[%clk 0:00:53]}  Rc2 {[%clk 0:01:20]} 27. Nd4 {[%clk 0:00:52]}  Nf4+ {[%clk 0:01:01]} 28. Nxb5 {[%clk 0:00:38]}  Nxg2 {[%clk 0:01:01]} 29. Rd3 {[%clk 0:00:37]}  Nxd5 {[%clk 0:00:56]} 30. Kg1 {[%clk 0:00:18]}  Ngxe3 {[%clk 0:00:54]} 31. Re1 {[%clk 0:00:16]}  Re8 {[%clk 0:00:52]} 32. Nd4 {[%clk 0:00:16]}  Rxb2 {[%clk 0:00:51]} 33. Kh1 {[%clk 0:00:14]}  Rxa2 {[%clk 0:00:50]} 34. Rc1 {[%clk 0:00:12]}  Nc3 {[%clk 0:00:46]} 35. Re1 {[%clk 0:00:10]}  Ned5 {[%clk 0:00:44]} 36. Rxe8 {[%clk 0:00:09]}  Kxe8 {[%clk 0:00:45]} 37. Nf5 {[%clk 0:00:10]}  b3 {[%clk 0:00:41]} 38. Nxd6+ {[%clk 0:00:10]}  Ke7 {[%clk 0:00:40]} 39. Nc4 {[%clk 0:00:11]}  b2 {[%clk 0:00:39]} 40. Nxb2 {[%clk 0:00:11]}  Rxb2 {[%clk 0:00:40]} 41. f4 {[%clk 0:00:12]}  a4 {[%clk 0:00:40]} 42. f5 {[%clk 0:00:12]}  a3 {[%clk 0:00:40]} 43. f6+ {[%clk 0:00:11]}  gxf6 {[%clk 0:00:40]} 44. g5 {[%clk 0:00:11]}  a2 {[%clk 0:00:41]} 45. gxf6+ {[%clk 0:00:11]}  Kxf6 {[%clk 0:00:39]} 46. Rf3+ {[%clk 0:00:11]}  Kg7 {[%clk 0:00:39]} 47. Rf1 {[%clk 0:00:09]}  Rb1 {[%clk 0:00:38]} 48. Rxb1 {[%clk 0:00:08]}  axb1=Q+ {[%clk 0:00:36]} 49. Kh2 {[%clk 0:00:09]}  Qc2+ {[%clk 0:00:36]} 50. Kg1 {[%clk 0:00:09]}  Ne3 {[%clk 0:00:35]} 51. Kh1 {[%clk 0:00:10]}  Qg2# {[%clk 0:00:35]} 0-1


[Site "https://www.chess.com"]

[Event "Titled Tuesday Blitz February 21 Late 2023"]
[White "Jimenez Jimenez, Leandro"]
[Black "Zhurbinsky, David"]
[WhiteFideId "6415253"]
[BlackFideId "2072904"]
[WhiteElo "2146"]
[BlackElo "2045"]
[Result "0-1"]
[Round "08"]
[TimeControl "180+2"]
[Date "2023.02.21"]
[WhiteClock "0:00:01"]
[BlackClock "0:00:25"]

1. d4 {[%clk 0:03:00]}  Nf6 {[%clk 0:02:59]} 2. c4 {[%clk 0:03:01]}  e6 {[%clk 0:03:00]} 3. Nf3 {[%clk 0:03:01]}  Bb4+ {[%clk 0:03:00]} 4. Bd2 {[%clk 0:03:00]}  Qe7 {[%clk 0:03:00]} 5. Nc3 {[%clk 0:03:00]}  O-O {[%clk 0:03:00]} 6. g3 {[%clk 0:02:54]}  d5 {[%clk 0:02:59]} 7. Bg2 {[%clk 0:02:45]}  Bxc3 {[%clk 0:02:59]} 8. Bxc3 {[%clk 0:02:45]}  Ne4 {[%clk 0:02:59]} 9. Qc2 {[%clk 0:02:45]}  Nd7 {[%clk 0:02:59]} 10. O-O {[%clk 0:02:45]}  f5 {[%clk 0:02:58]} 11. a3 {[%clk 0:02:43]}  Ndf6 {[%clk 0:02:56]} 12. Bb4 {[%clk 0:02:43]}  c5 {[%clk 0:02:52]} 13. dxc5 {[%clk 0:02:42]}  a5 {[%clk 0:02:50]} 14. Bc3 {[%clk 0:02:21]}  Qxc5 {[%clk 0:02:47]} 15. Bxf6 {[%clk 0:01:57]}  gxf6 {[%clk 0:02:39]} 16. Rac1 {[%clk 0:01:57]}  d4 {[%clk 0:02:11]} 17. Nd2 {[%clk 0:01:39]}  Nxd2 {[%clk 0:01:51]} 18. Qxd2 {[%clk 0:01:39]}  a4 {[%clk 0:01:40]} 19. Rfd1 {[%clk 0:01:35]}  e5 {[%clk 0:01:40]} 20. Bd5+ {[%clk 0:01:35]}  Kg7 {[%clk 0:01:40]} 21. Re1 {[%clk 0:01:16]}  Rd8 {[%clk 0:01:38]} 22. e3 {[%clk 0:01:12]}  dxe3 {[%clk 0:01:33]} 23. Qxe3 {[%clk 0:01:11]}  Qxe3 {[%clk 0:01:29]} 24. Rxe3 {[%clk 0:01:12]}  Ra6 {[%clk 0:01:28]} 25. b3 {[%clk 0:01:00]}  Be6 {[%clk 0:01:13]} 26. Bxe6 {[%clk 0:00:29]}  Rxe6 {[%clk 0:01:14]} 27. bxa4 {[%clk 0:00:29]}  Rb6 {[%clk 0:01:10]} 28. c5 {[%clk 0:00:23]}  Rb2 {[%clk 0:01:09]} 29. c6 {[%clk 0:00:22]}  bxc6 {[%clk 0:01:09]} 30. Rxc6 {[%clk 0:00:22]}  Rdd2 {[%clk 0:01:02]} 31. Rf3 {[%clk 0:00:20]}  Kg6 {[%clk 0:01:02]} 32. a5 {[%clk 0:00:17]}  Kg5 {[%clk 0:00:55]} 33. Rc7 {[%clk 0:00:15]}  f4 {[%clk 0:00:48]} 34. Rg7+ {[%clk 0:00:11]}  Kf5 {[%clk 0:00:45]} 35. Rxh7 {[%clk 0:00:09]}  Ke4 {[%clk 0:00:43]} 36. Kg2 {[%clk 0:00:08]}  Rd1 {[%clk 0:00:39]} 37. gxf4 {[%clk 0:00:07]}  exf4 {[%clk 0:00:32]} 38. Re7+ {[%clk 0:00:07]}  Kf5 {[%clk 0:00:32]} 39. Rb7 {[%clk 0:00:06]}  Rxb7 {[%clk 0:00:31]} 40. Rc3 {[%clk 0:00:03]}  Rd5 {[%clk 0:00:26]} 41. a6 {[%clk 0:00:03]}  Ra7 {[%clk 0:00:27]} 42. Rc6 {[%clk 0:00:02]}  Ra5 {[%clk 0:00:27]} 43. h4 {[%clk 0:00:01]}  Rxa3 {[%clk 0:00:27]} 44. Rc5+ {[%clk 0:00:01]}  Kg4 {[%clk 0:00:25]} 0-1


[Site "https://www.chess.com"]

[Event "Titled Tuesday Blitz February 21 Late 2023"]
[White "Feng, Eric"]
[Black "Vaglio Mattey, Emanuel"]
[WhiteFideId "30952590"]
[BlackFideId "6504167"]
[WhiteElo "1951"]
[BlackElo "2155"]
[Result "1-0"]
[Round "08"]
[TimeControl "180+2"]
[Date "2023.02.21"]
[WhiteClock "0:00:38"]
[BlackClock "0:00:03"]

1. d4 {[%clk 0:03:00]}  Nf6 {[%clk 0:02:57]} 2. c4 {[%clk 0:02:59]}  e6 {[%clk 0:02:56]} 3. Nf3 {[%clk 0:02:59]}  d5 {[%clk 0:02:56]} 4. g3 {[%clk 0:03:00]}  Be7 {[%clk 0:02:52]} 5. Bg2 {[%clk 0:03:00]}  O-O {[%clk 0:02:53]} 6. O-O {[%clk 0:03:00]}  dxc4 {[%clk 0:02:53]} 7. Ne5 {[%clk 0:03:01]}  c5 {[%clk 0:02:53]} 8. dxc5 {[%clk 0:03:00]}  Qc7 {[%clk 0:02:48]} 9. Nxc4 {[%clk 0:03:00]}  Qxc5 {[%clk 0:02:41]} 10. b3 {[%clk 0:03:00]}  Rd8 {[%clk 0:02:38]} 11. Qc2 {[%clk 0:02:55]}  Nc6 {[%clk 0:02:38]} 12. Ba3 {[%clk 0:02:55]}  Nb4 {[%clk 0:02:14]} 13. Bxb4 {[%clk 0:02:53]}  Qxb4 {[%clk 0:02:15]} 14. Nc3 {[%clk 0:02:51]}  Bd7 {[%clk 0:02:04]} 15. a3 {[%clk 0:02:50]}  Qc5 {[%clk 0:02:03]} 16. Bxb7 {[%clk 0:02:46]}  Rab8 {[%clk 0:02:04]} 17. Bg2 {[%clk 0:02:47]}  Rdc8 {[%clk 0:01:59]} 18. Rfd1 {[%clk 0:02:38]}  a5 {[%clk 0:01:53]} 19. Ne4 {[%clk 0:02:32]}  Nxe4 {[%clk 0:01:53]} 20. Bxe4 {[%clk 0:02:33]}  Bb5 {[%clk 0:01:44]} 21. Bxh7+ {[%clk 0:02:25]}  Kh8 {[%clk 0:01:42]} 22. Bd3 {[%clk 0:02:26]}  Bf6 {[%clk 0:01:37]} 23. Rac1 {[%clk 0:02:25]}  Qh5 {[%clk 0:01:02]} 24. a4 {[%clk 0:02:18]}  Bc6 {[%clk 0:00:58]} 25. Nxa5 {[%clk 0:02:16]}  Qxa5 {[%clk 0:00:57]} 26. Qc4 {[%clk 0:01:57]}  Qd5 {[%clk 0:00:53]} 27. Qxd5 {[%clk 0:01:49]}  Bxd5 {[%clk 0:00:54]} 28. Rxc8+ {[%clk 0:01:49]}  Rxc8 {[%clk 0:00:55]} 29. Rb1 {[%clk 0:01:48]}  Rc3 {[%clk 0:00:42]} 30. b4 {[%clk 0:01:43]}  Ra3 {[%clk 0:00:42]} 31. a5 {[%clk 0:01:42]}  Bd4 {[%clk 0:00:41]} 32. a6 {[%clk 0:01:40]}  g6 {[%clk 0:00:37]} 33. b5 {[%clk 0:01:40]}  Bb6 {[%clk 0:00:37]} 34. Rc1 {[%clk 0:01:35]}  Kg7 {[%clk 0:00:36]} 35. Kf1 {[%clk 0:01:25]}  e5 {[%clk 0:00:36]} 36. f3 {[%clk 0:01:25]}  Be3 {[%clk 0:00:32]} 37. Rd1 {[%clk 0:01:21]}  Bb3 {[%clk 0:00:23]} 38. Rb1 {[%clk 0:01:12]}  Ba2 {[%clk 0:00:23]} 39. Rb2 {[%clk 0:01:10]}  Bd4 {[%clk 0:00:20]} 40. b6 {[%clk 0:01:04]}  Bxb6 {[%clk 0:00:06]} 41. Rxb6 {[%clk 0:01:04]}  Bd5 {[%clk 0:00:06]} 42. Kf2 {[%clk 0:01:03]}  f5 {[%clk 0:00:06]} 43. Rd6 {[%clk 0:01:02]}  Ba8 {[%clk 0:00:06]} 44. Rd7+ {[%clk 0:01:01]}  Kf6 {[%clk 0:00:06]} 45. Bc4 {[%clk 0:00:57]}  e4 {[%clk 0:00:06]} 46. Rd8 {[%clk 0:00:42]}  e3+ {[%clk 0:00:02]} 47. Kg2 {[%clk 0:00:42]}  Ra4 {[%clk 0:00:03]} 48. Bd3 {[%clk 0:00:38]} 1-0


[Site "https://www.chess.com"]

[Event "Titled Tuesday Blitz February 21 Late 2023"]
[White "Jeet, Jain"]
[Black "Pino Perez, Lazaro"]
[WhiteFideId "5073022"]
[BlackFideId "3517055"]
[WhiteElo "2199"]
[BlackElo "2142"]
[Result "0-1"]
[Round "08"]
[TimeControl "180+2"]
[Date "2023.02.21"]
[WhiteClock "0:00:15"]
[BlackClock "0:00:07"]

1. c4 {[%clk 0:02:53]}  c5 {[%clk 0:02:59]} 2. Nf3 {[%clk 0:02:50]}  g6 {[%clk 0:02:59]} 3. Nc3 {[%clk 0:02:50]}  Bg7 {[%clk 0:02:55]} 4. g3 {[%clk 0:02:50]}  Nc6 {[%clk 0:02:55]} 5. Bg2 {[%clk 0:02:51]}  d6 {[%clk 0:02:55]} 6. O-O {[%clk 0:02:51]}  e5 {[%clk 0:02:55]} 7. d3 {[%clk 0:02:46]}  Nge7 {[%clk 0:02:54]} 8. a3 {[%clk 0:02:46]}  a5 {[%clk 0:02:52]} 9. Rb1 {[%clk 0:02:43]}  O-O {[%clk 0:02:51]} 10. Ne1 {[%clk 0:02:43]}  Be6 {[%clk 0:02:50]} 11. Nc2 {[%clk 0:02:42]}  d5 {[%clk 0:02:49]} 12. cxd5 {[%clk 0:02:37]}  Nxd5 {[%clk 0:02:50]} 13. Nxd5 {[%clk 0:02:35]}  Bxd5 {[%clk 0:02:49]} 14. Be3 {[%clk 0:02:12]}  a4 {[%clk 0:01:55]} 15. Ne1 {[%clk 0:01:57]}  Bb3 {[%clk 0:01:35]} 16. Qc1 {[%clk 0:01:56]}  Rc8 {[%clk 0:01:26]} 17. Nf3 {[%clk 0:01:13]}  b6 {[%clk 0:01:17]} 18. Nd2 {[%clk 0:01:12]}  Ba2 {[%clk 0:01:12]} 19. Ra1 {[%clk 0:01:12]}  Be6 {[%clk 0:01:13]} 20. Nc4 {[%clk 0:01:12]}  Nd4 {[%clk 0:01:02]} 21. Bxd4 {[%clk 0:01:12]}  exd4 {[%clk 0:00:57]} 22. Qc2 {[%clk 0:01:10]}  b5 {[%clk 0:00:53]} 23. Nd2 {[%clk 0:01:09]}  Qd7 {[%clk 0:00:52]} 24. Ne4 {[%clk 0:01:03]}  Bb3 {[%clk 0:00:28]} 25. Qd2 {[%clk 0:00:55]}  f5 {[%clk 0:00:27]} 26. Ng5 {[%clk 0:00:55]}  c4 {[%clk 0:00:18]} 27. dxc4 {[%clk 0:00:50]}  bxc4 {[%clk 0:00:19]} 28. Qa5 {[%clk 0:00:46]}  c3 {[%clk 0:00:16]} 29. bxc3 {[%clk 0:00:45]}  dxc3 {[%clk 0:00:17]} 30. Rac1 {[%clk 0:00:41]}  c2 {[%clk 0:00:16]} 31. e4 {[%clk 0:00:37]}  h6 {[%clk 0:00:15]} 32. Nh3 {[%clk 0:00:30]}  fxe4 {[%clk 0:00:14]} 33. Nf4 {[%clk 0:00:30]}  Bc3 {[%clk 0:00:12]} 34. Qa6 {[%clk 0:00:20]}  Rf6 {[%clk 0:00:12]} 35. Qe2 {[%clk 0:00:18]}  Bd2 {[%clk 0:00:11]} 36. Qxe4 {[%clk 0:00:17]}  Bxc1 {[%clk 0:00:08]} 37. Rxc1 {[%clk 0:00:17]}  Qd1+ {[%clk 0:00:08]} 38. Rxd1 {[%clk 0:00:15]}  cxd1=Q+ {[%clk 0:00:09]} 39. Bf1 {[%clk 0:00:15]}  Bc4 {[%clk 0:00:07]} 0-1


[Site "https://www.chess.com"]